bitfinex-derivatives/quotes_SOLF0:USTF0_20251020
["timestamp","ask_amount","ask_price","bid_price","bid_amount"]
[1760990619810,6.7308,188.62,188.56,7.452]
[1760990620112,25.68,188.63,188.56,2.68]
[1760990620410,27.64,188.63,188.55,2.68]
[1760990620804,25.68,188.63,188.54,2.68]
[1760990621004,25.68,188.63,188.55,2.68]
[1760990621605,1.96,188.7,188.58,2.68]
[1760990622111,4.7696,188.67,188.59,4.7714]
[1760990622313,4.7696,188.67,188.6,2.68]
[1760990622613,1.96,188.66,188.6,2.68]
[1760990623003,6.7299,188.66,188.6,2.68]
[1760990623805,1.96,188.65,188.6,2.68]
[1760990625412,1.96,188.65,188.6,7.4511]
[1760990626414,7.96283779,188.68,188.61,2.68]
[1760990626608,6.7293,188.68,188.61,2.68]
[1760990627015,6.7293,188.68,188.61,7.4508]
[1760990627711,1.96,188.68,188.62,7.4506]
[1760990629617,1.96,188.68,188.63,4.7704]
[1760990629807,4.7689,188.7,188.64,2.68]
[1760990631019,4.7689,188.7,188.64,7.4501]
[1760990631411,4.7689,188.7,188.65,2.68]
[1760990631711,1.96,188.69,188.65,2.68]
[1760990631918,1.96,188.69,188.64,4.7701]
[1760990632110,1.96,188.69,188.64,7.4501]
[1760990632315,1.96,188.69,188.64,2.68]
[1760990632316,1.96,188.68,188.64,2.68]
[1760990634627,1.96,188.67,188.62,7.4506]
[1760990634914,1.96,188.67,188.63,2.68]
[1760990639011,4.7695,188.68,188.63,2.68]
[1760990639520,6.7295,188.68,188.63,2.68]
[1760990640017,1.96,188.66,188.63,2.68]
[1760990640220,1.96,188.66,188.6,4.7713]
[1760990640412,1.96,188.69,188.6,2.83]
[1760990640717,1.96,188.69,188.61,2.04317265]
[1760990641324,1.96,188.69,188.61,4.87317265]
[1760990641713,1.96,188.69,188.63,2.83]
[1760990641914,1.96,188.71,188.64,2.83]
[1760990642117,1.96,188.69,188.61,4.87317265]
[1760990642417,1.96,188.69,188.63,4.7704]
[1760990643410,2.04317265,188.7,188.65,2.83]
[1760990643616,4.00317265,188.7,188.65,2.83]
[1760990643815,1.96,188.69,188.65,2.83]
[1760990644617,0.92264864,188.72,188.62,4.7706]
[1760990644618,1.96,188.67,188.62,4.7706]
[1760990645721,1.96,188.65,188.6,7.6012]
[1760990646025,1.96,188.65,188.61,2.83]
[1760990647214,1.96,188.65,188.6,4.7712]
[1760990647419,1.96,188.63,188.58,4.7717]
[1760990647619,1.96,188.63,188.58,7.6017]
[1760990647825,4.00317265,188.62,188.58,7.6017]
[1760990649033,1.96,188.64,188.59,4.7714]
[1760990649334,0.92264864,188.72,188.6,2.83]
[1760990649335,4.00317265,188.67,188.6,2.83]
[1760990649934,8.77277265,188.67,188.6,2.83]
[1760990650239,2.04317265,188.69,188.62,2.83]
[1760990650542,4.00317265,188.71,188.62,2.83]
[1760990650844,4.7691,188.69,188.63,9.64357265]
[1760990651139,1.96,188.68,188.63,4.7704]
[1760990651344,1.96,188.68,188.6,2.04317265]
[1760990651840,6.7299,188.66,188.6,2.04317265]
[1760990652030,6.7299,188.66,188.58,4.87317265]
[1760990652230,1.96,188.65,188.58,4.87317265]
[1760990653034,1.96,188.65,188.59,4.7714]
[1760990653230,1.96,188.65,188.58,4.87317265]
[1760990653732,1.96,188.65,188.58,9.64487265]
[1760990654042,6.7305,188.64,188.58,2.83]
[1760990654844,6.7208,188.63,188.56,2.04317265]
[1760990655343,6.7208,188.63,188.56,6.81537265]
[1760990655652,1.95,188.63,188.56,4.74317265]
[1760990655843,1.95,188.63,188.57,4.7719]
[1760990656041,1.95,188.61,188.56,2.7]
[1760990656648,1.95,188.61,188.57,2.7]
[1760990656840,1.95,188.65,188.58,4.74317265]
[1760990657852,4.7705,188.64,188.58,9.51477265]
[1760990658044,4.7705,188.64,188.58,6.81477265]
[1760990658243,1.95,188.69,188.61,2.7]
[1760990658447,1.95,188.67,188.6,2.04317265]
[1760990659756,1.95,188.67,188.61,2.7]
[1760990659947,1.95,188.67,188.63,2.7]
[1760990660250,4.9197401,188.7,188.63,2.7]
[1760990660459,1.95,188.68,188.62,2.04317265]
[1760990660950,1.95,188.68,188.62,4.74317265]
[1760990661158,1.95,188.66,188.59,2.04317265]
[1760990661453,1.95,188.66,188.57,4.74317265]
[1760990661754,4.7702,188.65,188.59,4.7714]
[1760990662056,6.7202,188.65,188.59,4.7714]
[1760990662446,1.95,188.63,188.59,4.7714]
[1760990662747,1.95,188.62,188.53,4.88629911]
[1760990662954,6.7209,188.62,188.54,2.7]
[1760990663459,1.95,188.62,188.55,4.7725]
[1760990664647,1.95,188.59,188.55,4.7725]
[1760990665048,1.95,188.59,188.54,2.7]
[1760990666354,4.771,188.62,188.56,4.74317265]
[1760990666553,6.721,188.62,188.57,2.7]
[1760990666758,1.95,188.61,188.57,2.7]
[1760990667056,1.95,188.61,188.56,2.04317265]
[1760990667561,1.95,188.61,188.56,4.96317265]
[1760990668356,4.7704,188.64,188.57,2.92]
[1760990668557,4.7704,188.64,188.59,2.92]
[1760990668757,1.94,188.65,188.61,2.92]
[1760990669860,6.7103,188.65,188.6,2.04317265]
[1760990670055,6.7103,188.65,188.6,4.96317265]
[1760990670251,6.7103,188.65,188.61,2.92]
[1760990671656,6.7103,188.65,188.59,4.7714]
[1760990671657,1.94,188.64,188.59,4.7714]
[1760990671858,1.94,188.64,188.57,7.6919]
[1760990672362,1.94,188.64,188.58,2.04317265]
[1760990673059,6.7107,188.63,188.59,2.92]
[1760990673558,1.94,188.67,188.6,2.04317265]
[1760990674961,0.92264864,188.72,188.63,2.92]
[1760990674962,6.8597401,188.71,188.63,2.92]
[1760990675256,4.7689,188.7,188.64,6.81337265]
[1760990675451,6.7089,188.7,188.64,9.73337265]
[1760990675651,1.94,188.69,188.59,7.80629911]
[1760990675861,1.94,188.67,188.59,4.96317265]
[1760990676158,4.77,188.66,188.59,9.73457265]
[1760990676361,4.77,188.66,188.59,4.96317265]
[1760990676966,1.94,188.67,188.61,6.81407265]
[1760990677167,1.94,188.67,188.61,9.73407265]
[1760990677868,4.7689,188.7,188.64,2.92]
[1760990678058,1.94,188.69,188.61,2.04317265]
[1760990678561,1.94,188.65,188.57,4.7719]
[1760990678865,1.94,188.65,188.58,4.96317265]
[1760990679161,1.94,188.65,188.58,2.92]
[1760990679360,1.94,188.65,188.57,4.7719]
[1760990680063,4.7707,188.63,188.57,4.7719]
[1760990681466,6.81387265,188.63,188.57,4.7719]
[1760990682467,6.711,188.62,188.57,4.7719]
[1760990682966,6.711,188.62,188.57,7.6919]
[1760990684862,4.771,188.62,188.58,2.92]
[1760990685571,6.81367265,188.64,188.58,2.92]
[1760990686172,6.7107,188.63,188.58,2.92]
[1760990687968,4.7707,188.63,188.59,2.92]
[1760990688172,4.7702,188.65,188.59,2.92]
[1760990688663,1.94,188.65,188.61,2.92]
[1760990688865,4.7697,188.67,188.61,2.92]
[1760990689072,1.94,188.67,188.58,2.92]
[1760990689266,1.94,188.66,188.58,2.92]
[1760990690469,4.7701,188.65,188.6,4.7712]
[1760990690671,4.7701,188.65,188.6,7.6912]
[1760990690871,1.94,188.64,188.57,4.96317265]
[1760990691073,1.94,188.64,188.58,2.92]
[1760990691277,6.7104,188.64,188.6,2.92]
[1760990694073,6.99544866,188.68,188.6,2.92]
[1760990694280,4.7699,188.66,188.61,2.92]
[1760990694577,4.7699,188.66,188.62,2.92]
[1760990694781,6.7099,188.66,188.62,2.92]
[1760990695280,1.94,188.64,188.6,2.92]
[1760990695475,4.7701,188.65,188.6,2.92]
[1760990696184,6.7101,188.65,188.6,2.92]
[1760990696977,6.7101,188.65,188.6,4.7712]
[1760990697179,6.7101,188.65,188.61,2.92]
[1760990697483,4.7697,188.67,188.61,7.6909]
[1760990697680,2.04317265,188.68,188.61,7.6909]
[1760990697879,1.95,188.67,188.61,7.6909]
[1760990699081,4.7699,188.66,188.62,2.86]
[1760990699379,6.7199,188.66,188.62,2.86]
[1760990700181,4.7701,188.65,188.62,2.86]
[1760990700982,1.95,188.66,188.62,2.86]
[1760990701182,4.7697,188.67,188.62,2.86]
[1760990701388,1.95,188.69,188.63,2.86]
[1760990701980,1.95,188.69,188.63,7.6304]
[1760990702680,4.7689,188.7,188.64,7.6301]
[1760990704178,4.7691,188.69,188.64,2.86]
[1760990704378,4.7691,188.69,188.62,4.7706]
[1760990704379,1.95,188.68,188.59,2.86]
[1760990704579,1.95,188.65,188.56,2.86]
[1760990705083,1.95,188.65,188.59,2.86]
[1760990706087,1.95,188.63,188.59,2.86]
[1760990706285,1.95,188.63,188.57,4.7719]
[1760990706480,1.95,188.63,188.57,2.86]
[1760990706680,6.7207,188.63,188.57,2.86]
[1760990707182,1.95,188.62,188.54,2.86]
[1760990707380,1.95,188.61,188.54,2.86]
[1760990708279,6.7211,188.61,188.55,4.7724]
[1760990708480,1.95,188.62,188.52,4.91352114]
[1760990708687,1.95,188.62,188.51,2.86]
[1760990708688,1.95,188.59,188.51,2.86]
[1760990708890,1.95,188.55,188.47,7.77352114]
[1760990709091,1.95,188.55,188.48,2.86]
[1760990710189,1.95,188.58,188.49,2.86]
[1760990710489,26.78,188.63,188.53,2.86]
[1760990710886,26.78,188.63,188.59,7.6315]
[1760990711094,26.78,188.63,188.6,2.86]
[1760990711795,26.78,188.63,188.56,2.86]
[1760990713076,26.78,188.63,188.59,2.86]
[1760990713796,26.78,188.63,188.62,2.86]
[1760990714094,4.7693,188.68,188.62,2.86]
[1760990714294,4.95227601,188.69,188.62,2.86]
[1760990714593,6.90227601,188.69,188.62,2.86]
[1760990715694,6.90227601,188.69,188.62,7.6306]
[1760990715897,49.37227601,188.7,188.62,2.86]
[1760990716086,44.42,188.7,188.62,2.86]
[1760990716286,44.42,188.7,188.67,2.77]
[1760990716794,4.95227601,188.75,188.69,2.77]
[1760990717091,6.90227601,188.76,188.69,2.77]
[1760990717395,1.95,188.76,188.7,4.7686]
[1760990718793,1.95,188.76,188.7,7.5386]
[1760990720194,1.95,188.76,188.63,8.10687843]
[1760990720195,1.95,188.75,188.64,2.77]
[1760990720397,3.19335729,188.73,188.64,2.77]
[1760990720589,1.95,188.72,188.64,2.77]
[1760990721997,1.95,188.72,188.65,4.7698]
[1760990722398,3.19335729,188.73,188.65,2.77]
[1760990722800,4.7677,188.75,188.65,2.77]
[1760990722801,1.95,188.74,188.65,2.77]
[1760990724091,1.95,188.74,188.67,2.77]
[1760990730501,1.95,188.74,188.67,7.5393]
[1760990731098,1.95,188.74,188.64,4.7702]
[1760990731294,1.95,188.77,188.68,2.76]
[1760990732297,6.7176,188.75,188.68,2.76]
[1760990732495,1.95,188.74,188.68,2.76]
[1760990733997,6.7179,188.74,188.68,2.76]
[1760990734393,6.7179,188.74,188.67,4.7694]
[1760990734394,1.95,188.73,188.6,2.76]
[1760990735399,4.7684,188.72,188.65,4.77]
[1760990735703,1.95,188.71,188.65,4.77]
[1760990736199,1.95,188.71,188.65,7.53]
[1760990738403,1.95,188.71,188.66,2.76]
[1760990739402,4.7684,188.72,188.67,2.76]
[1760990739600,4.7678,188.74,188.67,2.76]
[1760990740201,1.95,188.75,188.67,2.76]
[1760990740498,1.95,188.75,188.61,9.542]
[1760990740702,1.95,188.78,188.63,2.76]
[1760990740897,6.7168,188.78,188.64,2.76]
[1760990742298,6.7168,188.78,188.63,9.5411]
[1760990742299,6.88419703,188.82,188.66,2.76]
[1760990742500,1.95,188.82,188.73,4.7678]
[1760990742910,0.92213522,188.83,188.72,2.76]
[1760990742911,6.7161,188.81,188.72,2.76]
[1760990743205,1.95,188.8,188.72,2.76]
[1760990743405,1.95,188.8,188.74,4.7676]
[1760990743810,1.95,188.78,188.72,7.5281]
[1760990744913,9.90706033,188.78,188.72,7.5281]
[1760990749214,1.95,188.78,188.73,7.5278]
[1760990749412,1.95,188.78,188.74,2.76]
[1760990752119,1.95,188.8,188.71,7.5284]
[1760990753010,49.33419703,188.82,188.71,7.5284]
[1760990753011,1.95,188.77,188.71,7.5284]
[1760990754117,1.95,188.75,188.71,7.5284]
[1760990755421,1.95,188.73,188.69,4.7689]
[1760990755913,6.7174,188.76,188.7,2.76]
[1760990756223,6.7174,188.76,188.71,2.76]
[1760990756515,1.95,188.77,188.71,2.76]
[1760990757612,6.7171,188.77,188.72,2.7]
[1760990758015,4.7671,188.77,188.72,2.7]
[1760990759111,4.7671,188.77,188.73,2.7]
[1760990761107,2.04131963,188.78,188.7,7.4686]
[1760990761108,6.7173,188.76,188.7,7.4686]
[1760990761317,8.75861963,188.76,188.7,7.4686]
[1760990761518,8.75861963,188.76,188.7,2.7]
[1760990761710,6.80861963,188.76,188.7,2.7]
[1760990761911,4.7673,188.76,188.7,2.7]
[1760990763019,4.7673,188.76,188.72,2.7]
[1760990765517,6.80811963,188.78,188.73,2.7]
[1760990765726,1.95,188.77,188.73,2.7]
[1760990767022,6.80811963,188.78,188.73,4.7679]
[1760990767223,4.7668,188.78,188.74,2.65]
[1760990767821,6.7168,188.78,188.74,2.65]
[1760990768624,1.95,188.76,188.71,7.4183]
[1760990768820,1.95,188.76,188.72,2.65]
[1760990769018,4.7671,188.77,188.72,2.65]
[1760990769331,4.7666,188.79,188.71,2.65]
[1760990769519,1.95,188.79,188.71,2.65]
[1760990769925,6.7168,188.78,188.72,4.7681]
[1760990770225,8.75811963,188.78,188.72,4.7681]
[1760990770822,1.95,188.75,188.68,2.65]
[1760990771024,2.04131963,188.72,188.68,2.65]
[1760990771228,3.99131963,188.72,188.68,2.65]
[1760990772126,8.75971963,188.72,188.68,2.65]
[1760990772715,8.75971963,188.72,188.66,2.65]
[1760990772716,1.95,188.7,188.66,2.65]
[1760990772922,1.95,188.7,188.63,2.65]
[1760990772923,1.95,188.67,188.63,2.65]
[1760990773123,2.04131963,188.66,188.63,2.65]
[1760990773322,2.04131963,188.66,188.59,7.4214]
[1760990773625,48.35131963,188.69,188.61,2.65]
[1760990773830,2.04131963,188.67,188.61,2.65]
[1760990774434,2.04131963,188.67,188.61,7.4209]
[1760990775326,8.76091963,188.67,188.62,2.65]
[1760990776318,51.17041963,188.69,188.62,4.7706]
[1760990776525,1.95,188.7,188.63,2.65]
[1760990777536,1.95,188.7,188.64,7.42]
[1760990778031,1.95,188.7,188.65,2.65]
[1760990778727,44.38,188.72,188.66,2.85]
[1760990778933,44.38,188.72,188.66,4.89131963]
[1760990779229,44.38,188.72,188.67,2.85]
[1760990779432,44.38,188.72,188.68,4.89131963]
[1760990779627,3.99131963,188.77,188.69,2.85]
[1760990780329,49.31419703,188.79,188.72,2.85]
[1760990780530,44.38,188.79,188.73,2.85]
[1760990780834,44.38,188.79,188.73,7.6178]
[1760990781730,11.65019703,188.81,188.74,7.6176]
[1760990782036,6.716,188.81,188.74,7.6176]
[1760990783026,1.95,188.81,188.75,4.7673]
[1760990783332,1.95,188.81,188.75,4.89131963]
[1760990783534,1.95,188.81,188.76,2.85]
[1760990783837,44.38,188.82,188.76,2.85]
[1760990784425,51.0958,188.82,188.76,2.85]
[1760990784733,1.95,188.81,188.76,2.85]
[1760990785626,1.95,188.81,188.76,7.6171]
[1760990787135,1.95,188.81,188.76,2.85]
[1760990787728,3.99131963,188.8,188.76,2.85]
[1760990790642,1.95,188.8,188.76,2.85]
[1760990790838,46.40131963,188.81,188.76,2.85]
[1760990791239,48.35131963,188.81,188.76,2.85]
[1760990792738,48.35131963,188.81,188.77,2.71]
[1760990792939,44.36,188.81,188.77,2.71]
[1760990793340,8.92551666,188.85,188.77,2.71]
[1760990793536,53.28551666,188.85,188.77,2.71]
[1760990794034,48.35131963,188.85,188.79,7.4763]
[1760990795436,48.35131963,188.85,188.81,2.71]
[1760990796042,44.36,188.85,188.83,2.71]
[1760990796345,46.40131963,188.9,188.83,2.71]
[1760990796847,46.40131963,188.9,188.81,2.04131963]
[1760990796848,48.35131963,188.9,188.86,2.71]
[1760990797237,3.99131963,188.9,188.86,2.71]
[1760990797541,44.36,188.91,188.87,2.71]
[1760990797845,46.31,188.91,188.87,2.71]
[1760990798043,3.99131963,188.94,188.88,4.7641]
[1760990798248,46.29,188.93,188.89,2.71]
[1760990798453,46.29,188.93,188.88,4.7641]
[1760990798454,3.99131963,188.92,188.88,4.7641]
[1760990798942,44.34,188.93,188.89,7.4738]
[1760990799243,44.34,188.93,188.89,2.71]
[1760990799946,1.95,188.95,188.91,4.7632]
[1760990800246,1.95,188.95,188.91,7.4732]
[1760990800443,44.34,188.96,188.92,2.71]
[1760990800942,44.34,188.96,188.92,7.4729]
[1760990801141,44.34,188.96,188.93,2.71]
[1760990802145,2.04131963,188.97,188.93,2.71]
[1760990802553,2.04131963,188.97,188.89,2.04131963]
[1760990802554,2.04131963,188.95,188.89,2.71]
[1760990802841,2.04131963,188.9,188.87,4.7644]
[1760990803038,2.04131963,188.9,188.87,7.4744]
[1760990803240,2.04131963,188.92,188.89,2.71]
[1760990805443,1.95,188.91,188.88,4.764]
[1760990805750,3.99131963,188.9,188.88,4.764]
[1760990806047,2.04131963,188.9,188.88,7.474]
[1760990806550,44.34,188.95,188.9,2.71]
[1760990806738,2.04131963,188.96,188.9,2.71]
[1760990807643,2.04131963,188.95,188.9,2.71]
[1760990807843,2.04131963,188.93,188.91,4.7633]
[1760990808043,3.99131963,188.93,188.87,2.71]
[1760990808242,2.04131963,188.91,188.87,2.71]
[1760990808947,2.04131963,188.91,188.89,4.7639]
[1760990809347,2.04131963,188.91,188.89,7.4739]
[1760990809550,44.32,189.0,188.92,2.71]
[1760990809860,2.04131963,188.97,188.92,2.71]
[1760990810343,3.99131963,188.99,188.95,2.71]
[1760990811448,1.95,188.98,188.94,7.4725]
[1760990815359,1.95,188.98,188.94,4.7625]
[1760990815560,1.95,188.98,188.95,2.71]
[1760990817854,1.95,188.98,188.94,4.7625]
[1760990818166,3.97131963,188.97,188.93,2.9]
[1760990818863,1.93,188.96,188.92,4.7631]
[1760990819065,1.93,188.96,188.92,7.6631]
[1760990821064,3.18325139,188.98,188.92,2.9]
[1760990821964,3.18325139,188.98,188.92,7.663]
[1760990822661,1.93,188.99,188.93,2.9]
[1760990822864,44.3,189.0,188.93,2.9]
[1760990823367,1.93,188.99,188.95,7.6623]
[1760990824565,1.93,188.98,188.93,4.7628]
[1760990824765,1.93,188.98,188.93,7.6628]
[1760990825264,1.93,188.98,188.94,4.7626]
[1760990825565,3.18325139,188.99,188.95,2.9]
[1760990825776,3.18325139,188.99,188.95,7.6623]
[1760990825978,5.11325139,188.99,188.96,2.9]
[1760990826274,5.11325139,188.99,188.91,2.9]
[1760990826871,9.87475139,188.99,188.93,4.7628]
[1760990827572,1.93,188.98,188.94,2.9]
[1760990828870,1.93,188.95,188.84,2.9]
[1760990829478,1.93,188.92,188.87,4.7644]
[1760990829676,1.93,188.92,188.88,2.9]
[1760990829878,3.18325139,188.89,188.88,2.9]
[1760990831078,3.18325139,188.89,188.88,7.6641]
[1760990832180,5.11325139,188.89,188.86,4.7646]
[1760990832377,1.93,188.86,188.8,2.9]
[1760990832674,3.18325139,188.83,188.8,2.9]
[1760990833080,5.11325139,188.83,188.77,2.9]
[1760990833380,3.18325139,188.8,188.77,2.9]
[1760990833568,3.18325139,188.8,188.77,7.6667]
[1760990833974,3.18325139,188.8,188.78,2.9]
[1760990834382,3.18325139,188.8,188.78,7.6665]
[1760990835174,3.18325139,188.86,188.79,2.86]
[1760990835573,3.18325139,188.89,188.8,2.86]
[1760990836476,3.18325139,188.92,188.8,2.86]
[1760990836984,5.13325139,188.92,188.79,2.86]
[1760990837681,44.3,188.94,188.88,2.86]
[1760990838081,5.13325139,188.98,188.88,2.86]
[1760990838281,5.13325139,188.98,188.91,7.6233]
[1760990838687,5.13325139,188.98,188.91,2.86]
[1760990838876,1.95,188.98,188.86,3.18325139]
[1760990839079,5.13325139,189.01,188.94,2.86]
[1760990839382,1.95,189.0,188.94,2.86]
[1760990839980,1.95,189.0,188.94,7.6224]
[1760990840684,1.95,189.0,188.92,4.7632]
[1760990841583,1.95,189.0,188.93,4.7627]
[1760990842490,1.95,189.0,188.94,4.7625]
[1760990842685,1.95,189.0,188.94,7.6225]
[1760990842890,1.95,189.0,188.94,2.86]
[1760990843284,23.84,189.02,188.9,2.86]
[1760990845993,1.95,189.01,188.9,2.86]
[1760990846294,1.95,189.0,188.9,2.86]
[1760990846895,1.95,189.0,188.96,4.762]
[1760990847190,25.79,189.02,188.97,2.86]
[1760990847583,1.95,189.01,188.97,2.86]
[1760990848889,1.95,189.01,188.96,4.7621]
[1760990849293,1.95,189.01,188.94,4.7626]
[1760990849294,1.95,189.0,188.94,4.7626]
[1760990849506,1.95,189.0,188.94,7.4826]
[1760990849693,1.95,189.01,188.89,2.72]
[1760990850000,1.95,189.01,188.93,2.72]
[1760990850804,1.95,189.01,188.96,4.762]
[1760990851997,1.95,189.01,188.94,4.7626]
[1760990852301,1.95,189.01,188.93,2.72]
[1760990853100,1.95,189.01,188.96,4.762]
[1760990853706,1.95,189.01,188.96,7.482]
[1760990855506,3.18325139,189.01,188.96,7.482]
[1760990855703,1.95,189.0,188.96,7.482]
[1760990855909,1.95,189.0,188.96,4.762]
[1760990856107,1.95,189.0,188.94,4.7626]
[1760990856308,1.95,189.0,188.92,2.72]
[1760990857010,1.95,189.0,188.96,7.482]
[1760990857508,1.95,189.0,188.97,4.7617]
[1760990857703,1.95,189.0,188.97,7.4817]
[1760990858203,3.18325139,189.01,188.98,7.4815]
[1760990862108,3.18325139,189.01,188.99,2.72]
[1760990862607,3.18325139,189.01,188.99,7.4813]
[1760990863109,1.95,189.0,188.91,2.72]
[1760990863506,3.18325139,189.01,188.91,2.72]
[1760990865010,3.18325139,189.01,188.97,4.7617]
[1760990865314,3.18325139,189.01,188.97,7.4817]
[1760990865611,1.95,189.01,188.98,4.7615]
[1760990865915,1.95,189.01,188.98,7.4815]
[1760990866216,1.95,189.01,188.98,4.7615]
[1760990870921,9.89375139,189.03,188.99,2.72]
[1760990871319,7.94375139,189.03,188.99,2.72]
[1760990871520,1.95,189.02,188.99,2.72]
[1760990873117,1.95,189.02,188.98,4.7615]
[1760990874023,1.95,189.01,188.98,4.7615]
[1760990874425,4.91996903,189.08,189.03,4.7604]
[1760990874628,1.95,189.07,189.04,2.78]
[1760990874817,4.41184687,189.08,189.04,2.78]
[1760990875016,3.18325139,189.09,189.07,2.78]
[1760990875213,9.54509826,189.12,189.07,2.78]
[1760990875420,4.41184687,189.12,189.07,2.78]
[1760990875615,5.13325139,189.15,189.07,2.78]
[1760990876226,5.13325139,189.15,189.09,7.5387]
[1760990876621,5.13325139,189.15,189.12,7.5376]
[1760990876826,3.18325139,189.15,189.12,7.5376]
[1760990877019,3.18325139,189.15,189.12,4.7576]
[1760990877220,9.54030196,189.18,189.14,7.5373]
[1760990877424,5.13325139,189.18,189.14,7.5373]
[1760990877827,3.18325139,189.15,189.02,71.5203]
[1760990878122,3.18325139,189.15,189.08,2.71]
[1760990878123,5.13325139,189.15,189.08,2.71]
[1760990878429,5.13325139,189.15,189.09,7.4684]
[1760990878730,1.95,189.14,189.1,2.71]
[1760990881427,4.40046727,189.17,189.1,2.71]
[1760990881633,44.24,189.18,189.1,2.71]
[1760990881834,3.18325139,189.19,189.1,2.71]
[1760990882225,3.18325139,189.19,189.14,4.7571]
[1760990882432,6.35350772,189.21,189.15,2.71]
[1760990882732,2.03208857,189.2,189.15,2.71]
[1760990882927,2.03208857,189.2,189.17,2.71]
[1760990883134,46.27208857,189.22,189.17,2.71]
[1760990883736,1.95,189.25,189.19,2.71]
[1760990883927,2.03208857,189.23,189.19,2.71]
[1760990884124,2.03208857,189.25,189.22,2.71]
[1760990884432,2.03208857,189.25,189.21,4.7555]
[1760990884433,1.95,189.35,189.23,2.71]
[1760990884625,2.03208857,189.31,189.23,2.71]
[1760990884834,1.95,189.35,189.25,2.71]
[1760990885129,2.03208857,189.31,189.25,2.71]
[1760990885332,2.03208857,189.29,189.25,2.71]
[1760990885534,2.03208857,189.27,189.21,2.71]
[1760990885733,1.95,189.29,189.21,2.71]
[1760990885935,1.95,189.34,189.22,2.71]
[1760990886232,4.38697172,189.36,189.28,2.71]
[1760990886433,0.91950379,189.38,189.28,2.71]
[1760990886635,40.67,189.46,189.33,2.71]
[1760990886836,40.67,189.46,189.35,2.71]
[1760990886837,1.95,189.46,189.35,2.71]
[1760990887035,2.03208857,189.44,189.35,2.71]
[1760990887338,1.95,189.43,189.35,2.71]
[1760990887534,2.03208857,189.39,189.31,2.71]
[1760990887729,2.03208857,189.37,189.31,2.71]
[1760990887927,2.03208857,189.35,189.31,2.71]
[1760990888127,2.03208857,189.33,189.26,2.71]
[1760990888440,2.03208857,189.37,189.28,2.71]
[1760990888739,1.95,189.38,189.28,2.71]
[1760990889333,29.34,189.39,189.28,2.71]
[1760990889526,5.07138644,189.41,189.28,2.71]
[1760990889726,1.95,189.42,189.31,4.7529]
[1760990889936,1.95,189.42,189.32,2.71]
[1760990890332,45.52138644,189.46,189.36,2.71]
[1760990890538,1.95,189.57,189.37,2.71]
[1760990890744,1.95,189.55,189.37,2.71]
[1760990891038,1.95,189.55,189.38,2.71]
[1760990891240,1.95,189.54,189.38,2.71]